{"text_format":"1","workbook":"xlsx","n_sheets":7,"sheets":["Титульный лист","Таблица наблюдений","Список птиц","Регионы","Страны","Погода","Биотопы"],"not_rendered":{"charts":0,"images":0,"macros":1,"external_links":0,"defined_names":13,"comments":0,"pivot_tables":0},"unopened":[],"bounds":{"document_bytes":16777216,"sheet_cells":100000,"rows_first":2000,"rows_last":500,"rows_between":2000,"halvings":0,"cell_chars":16384,"cell_head_chars":4096},"cells_cut":0,"cells_raw":0,"read":"whole","date_system":"1900"}

{"sheet":"Титульный лист","index":0,"n_rows":24,"n_cols":8,"rows_kept":24,"cut":false,"hidden":false,"merged":[[15,1,16,1],[23,1,27,9],[1,5,1,9],[15,2,16,9],[12,7,13,7],[12,8,13,8],[12,2,13,6],[4,4,4,5],[4,7,4,8],[8,2,8,8],[6,2,6,8],[10,2,10,3]]}
[]
[null,null,null,null,"GUID:"]
[]
[]
[null,"Карточка наблюдений №",null,null,null,null,"от "]
[]
[null,"Страна"]
[]
[null,"Регион:"]
[]
[null,"Погода:",null,null,"  Температура:"]
[]
[null,"Маршрут: ",null,null,null,null,null,"Длина маршрута:"]
[]
[]
[null,"Комментарий: "]
[]
[]
[]
[]
[]
[]
[]
[null,"Инструкция: GUID необходимо получить в БД \"Онлайн дневники наблюдений\". Для этого на рабочем столе нажмите в левом верхнем углу БД ссылку \"Настройки пользователя\", в настройках нажать кнопку \"Получить GUID\". Если поле \"GUID обмена пустое\", то необходимо сформировать новый GUID. Результат необходимо скопировать и поместить в поле GUID данного титульного листа.\nВ  поле номера (\"Карточка наблюдений №\") необходимо каждый раз вручную указывать уникальный в пределах дня номер наблюдений. Например, если Вы хотите сформировать за день две карточки, то для них нужно отдельно указать №1, а после выгрузки первой карточки - №2. После отправки на сервер номер очищается. Повторная выгрузка с тем же номером и датой карточки перезапишет карточку на сервере."]

{"sheet":"Таблица наблюдений","index":1,"n_rows":158,"n_cols":6,"rows_kept":158,"cut":false,"hidden":false,"merged":[]}
[null,"Вид птицы","Количество","Примечание","GPS","Биотоп"]
[{"$f":"VLOOKUP(B2,'Список птиц'!A2:B916, 2, FALSE)","v":{"$error":"#N/A"}}]
[{"$f":"VLOOKUP(B3,'Список птиц'!A3:B917, 2, FALSE)","v":{"$error":"#N/A"}}]
[{"$f":"VLOOKUP(B4,'Список птиц'!A4:B918, 2, FALSE)","v":{"$error":"#N/A"}}]
[{"$f":"VLOOKUP(B5,'Список птиц'!A5:B919, 2, FALSE)","v":{"$error":"#N/A"}}]
[{"$f":"VLOOKUP(B6,'Список птиц'!A6:B920, 2, FALSE)","v":{"$error":"#N/A"}}]
[{"$f":"VLOOKUP(B7,'Список птиц'!A7:B921, 2, FALSE)","v":{"$error":"#N/A"}}]
[{"$f":"VLOOKUP(B8,'Список птиц'!A8:B922, 2, FALSE)","v":{"$error":"#N/A"}}]
[{"$f":"VLOOKUP(B9,'Список птиц'!A9:B923, 2, FALSE)","v":{"$error":"#N/A"}}]
[{"$f":"VLOOKUP(B10,'Список птиц'!A10:B924, 2, FALSE)","v":{"$error":"#N/A"}}]
[{"$f":"VLOOKUP(B11,'Список птиц'!A11:B925, 2, FALSE)","v":{"$error":"#N/A"}}]
[{"$f":"VLOOKUP(B12,'Список птиц'!A12:B926, 2, FALSE)","v":{"$error":"#N/A"}}]
[{"$f":"VLOOKUP(B13,'Список птиц'!A13:B927, 2, FALSE)","v":{"$error":"#N/A"}}]
[{"$f":"VLOOKUP(B14,'Список птиц'!A14:B928, 2, FALSE)","v":{"$error":"#N/A"}}]
[{"$f":"VLOOKUP(B15,'Список птиц'!A15:B929, 2, FALSE)","v":{"$error":"#N/A"}}]
[{"$f":"VLOOKUP(B16,'Список птиц'!A16:B930, 2, FALSE)","v":{"$error":"#N/A"}}]
[{"$f":"VLOOKUP(B17,'Список птиц'!A17:B931, 2, FALSE)","v":{"$error":"#N/A"}}]
[{"$f":"VLOOKUP(B18,'Список птиц'!A18:B932, 2, FALSE)","v":{"$error":"#N/A"}}]
[{"$f":"VLOOKUP(B19,'Список птиц'!A19:B933, 2, FALSE)","v":{"$error":"#N/A"}}]
[{"$f":"VLOOKUP(B20,'Список птиц'!A20:B934, 2, FALSE)","v":{"$error":"#N/A"}}]
[{"$f":"VLOOKUP(B21,'Список птиц'!A21:B935, 2, FALSE)","v":{"$error":"#N/A"}}]
[{"$f":"VLOOKUP(B22,'Список птиц'!A22:B936, 2, FALSE)","v":{"$error":"#N/A"}}]
[{"$f":"VLOOKUP(B23,'Список птиц'!A23:B937, 2, FALSE)","v":{"$error":"#N/A"}}]
[{"$f":"VLOOKUP(B24,'Список птиц'!A24:B938, 2, FALSE)","v":{"$error":"#N/A"}}]
[{"$f":"VLOOKUP(B25,'Список птиц'!A25:B939, 2, FALSE)","v":{"$error":"#N/A"}}]
[{"$f":"VLOOKUP(B26,'Список птиц'!A26:B940, 2, FALSE)","v":{"$error":"#N/A"}}]
[{"$f":"VLOOKUP(B27,'Список птиц'!A27:B941, 2, FALSE)","v":{"$error":"#N/A"}}]
[{"$f":"VLOOKUP(B28,'Список птиц'!A28:B942, 2, FALSE)","v":{"$error":"#N/A"}}]
[{"$f":"VLOOKUP(B29,'Список птиц'!A29:B943, 2, FALSE)","v":{"$error":"#N/A"}}]
[{"$f":"VLOOKUP(B30,'Список птиц'!A30:B944, 2, FALSE)","v":{"$error":"#N/A"}}]
[{"$f":"VLOOKUP(B31,'Список птиц'!A31:B945, 2, FALSE)","v":{"$error":"#N/A"}}]
[{"$f":"VLOOKUP(B32,'Список птиц'!A32:B946, 2, FALSE)","v":{"$error":"#N/A"}}]
[{"$f":"VLOOKUP(B33,'Список птиц'!A33:B947, 2, FALSE)","v":{"$error":"#N/A"}}]
[{"$f":"VLOOKUP(B34,'Список птиц'!A34:B948, 2, FALSE)","v":{"$error":"#N/A"}}]
[{"$f":"VLOOKUP(B35,'Список птиц'!A35:B949, 2, FALSE)","v":{"$error":"#N/A"}}]
[{"$f":"VLOOKUP(B36,'Список птиц'!A36:B950, 2, FALSE)","v":{"$error":"#N/A"}}]
[{"$f":"VLOOKUP(B37,'Список птиц'!A37:B951, 2, FALSE)","v":{"$error":"#N/A"}}]
[{"$f":"VLOOKUP(B38,'Список птиц'!A38:B952, 2, FALSE)","v":{"$error":"#N/A"}}]
[{"$f":"VLOOKUP(B39,'Список птиц'!A39:B953, 2, FALSE)","v":{"$error":"#N/A"}}]
[{"$f":"VLOOKUP(B40,'Список птиц'!A40:B954, 2, FALSE)","v":{"$error":"#N/A"}}]
[{"$f":"VLOOKUP(B41,'Список птиц'!A41:B955, 2, FALSE)","v":{"$error":"#N/A"}}]
[{"$f":"VLOOKUP(B42,'Список птиц'!A42:B956, 2, FALSE)","v":{"$error":"#N/A"}}]
[{"$f":"VLOOKUP(B43,'Список птиц'!A43:B957, 2, FALSE)","v":{"$error":"#N/A"}}]
[{"$f":"VLOOKUP(B44,'Список птиц'!A44:B958, 2, FALSE)","v":{"$error":"#N/A"}}]
[{"$f":"VLOOKUP(B45,'Список птиц'!A45:B959, 2, FALSE)","v":{"$error":"#N/A"}}]
[{"$f":"VLOOKUP(B46,'Список птиц'!A46:B960, 2, FALSE)","v":{"$error":"#N/A"}}]
[{"$f":"VLOOKUP(B47,'Список птиц'!A47:B961, 2, FALSE)","v":{"$error":"#N/A"}}]
[{"$f":"VLOOKUP(B48,'Список птиц'!A48:B962, 2, FALSE)","v":{"$error":"#N/A"}}]
[{"$f":"VLOOKUP(B49,'Список птиц'!A49:B963, 2, FALSE)","v":{"$error":"#N/A"}}]
[{"$f":"VLOOKUP(B50,'Список птиц'!A50:B964, 2, FALSE)","v":{"$error":"#N/A"}}]
[{"$f":"VLOOKUP(B51,'Список птиц'!A51:B965, 2, FALSE)","v":{"$error":"#N/A"}}]
[{"$f":"VLOOKUP(B52,'Список птиц'!A52:B966, 2, FALSE)","v":{"$error":"#N/A"}}]
[{"$f":"VLOOKUP(B53,'Список птиц'!A53:B967, 2, FALSE)","v":{"$error":"#N/A"}}]
[{"$f":"VLOOKUP(B54,'Список птиц'!A54:B968, 2, FALSE)","v":{"$error":"#N/A"}}]
[{"$f":"VLOOKUP(B55,'Список птиц'!A55:B969, 2, FALSE)","v":{"$error":"#N/A"}}]
[{"$f":"VLOOKUP(B56,'Список птиц'!A56:B970, 2, FALSE)","v":{"$error":"#N/A"}}]
[{"$f":"VLOOKUP(B57,'Список птиц'!A57:B971, 2, FALSE)","v":{"$error":"#N/A"}}]
[{"$f":"VLOOKUP(B58,'Список птиц'!A58:B972, 2, FALSE)","v":{"$error":"#N/A"}}]
[{"$f":"VLOOKUP(B59,'Список птиц'!A59:B973, 2, FALSE)","v":{"$error":"#N/A"}}]
[{"$f":"VLOOKUP(B60,'Список птиц'!A60:B974, 2, FALSE)","v":{"$error":"#N/A"}}]
[{"$f":"VLOOKUP(B61,'Список птиц'!A61:B975, 2, FALSE)","v":{"$error":"#N/A"}}]
[{"$f":"VLOOKUP(B62,'Список птиц'!A62:B976, 2, FALSE)","v":{"$error":"#N/A"}}]
[{"$f":"VLOOKUP(B63,'Список птиц'!A63:B977, 2, FALSE)","v":{"$error":"#N/A"}}]
[{"$f":"VLOOKUP(B64,'Список птиц'!A64:B978, 2, FALSE)","v":{"$error":"#N/A"}}]
[{"$f":"VLOOKUP(B65,'Список птиц'!A65:B979, 2, FALSE)","v":{"$error":"#N/A"}}]
[{"$f":"VLOOKUP(B66,'Список птиц'!A66:B980, 2, FALSE)","v":{"$error":"#N/A"}}]
[{"$f":"VLOOKUP(B67,'Список птиц'!A67:B981, 2, FALSE)","v":{"$error":"#N/A"}}]
[{"$f":"VLOOKUP(B68,'Список птиц'!A68:B982, 2, FALSE)","v":{"$error":"#N/A"}}]
[{"$f":"VLOOKUP(B69,'Список птиц'!A69:B983, 2, FALSE)","v":{"$error":"#N/A"}}]
[{"$f":"VLOOKUP(B70,'Список птиц'!A70:B984, 2, FALSE)","v":{"$error":"#N/A"}}]
[{"$f":"VLOOKUP(B71,'Список птиц'!A71:B985, 2, FALSE)","v":{"$error":"#N/A"}}]
[{"$f":"VLOOKUP(B72,'Список птиц'!A72:B986, 2, FALSE)","v":{"$error":"#N/A"}}]
[{"$f":"VLOOKUP(B73,'Список птиц'!A73:B987, 2, FALSE)","v":{"$error":"#N/A"}}]
[{"$f":"VLOOKUP(B74,'Список птиц'!A74:B988, 2, FALSE)","v":{"$error":"#N/A"}}]
[{"$f":"VLOOKUP(B75,'Список птиц'!A75:B989, 2, FALSE)","v":{"$error":"#N/A"}}]
[{"$f":"VLOOKUP(B76,'Список птиц'!A76:B990, 2, FALSE)","v":{"$error":"#N/A"}}]
[{"$f":"VLOOKUP(B77,'Список птиц'!A77:B991, 2, FALSE)","v":{"$error":"#N/A"}}]
[{"$f":"VLOOKUP(B78,'Список птиц'!A78:B992, 2, FALSE)","v":{"$error":"#N/A"}}]
[{"$f":"VLOOKUP(B79,'Список птиц'!A79:B993, 2, FALSE)","v":{"$error":"#N/A"}}]
[{"$f":"VLOOKUP(B80,'Список птиц'!A80:B994, 2, FALSE)","v":{"$error":"#N/A"}}]
[{"$f":"VLOOKUP(B81,'Список птиц'!A81:B995, 2, FALSE)","v":{"$error":"#N/A"}}]
[{"$f":"VLOOKUP(B82,'Список птиц'!A82:B996, 2, FALSE)","v":{"$error":"#N/A"}}]
[{"$f":"VLOOKUP(B83,'Список птиц'!A83:B997, 2, FALSE)","v":{"$error":"#N/A"}}]
[{"$f":"VLOOKUP(B84,'Список птиц'!A84:B998, 2, FALSE)","v":{"$error":"#N/A"}}]
[{"$f":"VLOOKUP(B85,'Список птиц'!A85:B999, 2, FALSE)","v":{"$error":"#N/A"}}]
[{"$f":"VLOOKUP(B86,'Список птиц'!A86:B1000, 2, FALSE)","v":{"$error":"#N/A"}}]
[{"$f":"VLOOKUP(B87,'Список птиц'!A87:B1001, 2, FALSE)","v":{"$error":"#N/A"}}]
[{"$f":"VLOOKUP(B88,'Список птиц'!A88:B1002, 2, FALSE)","v":{"$error":"#N/A"}}]
[{"$f":"VLOOKUP(B89,'Список птиц'!A89:B1003, 2, FALSE)","v":{"$error":"#N/A"}}]
[{"$f":"VLOOKUP(B90,'Список птиц'!A90:B1004, 2, FALSE)","v":{"$error":"#N/A"}}]
[{"$f":"VLOOKUP(B91,'Список птиц'!A91:B1005, 2, FALSE)","v":{"$error":"#N/A"}}]
[{"$f":"VLOOKUP(B92,'Список птиц'!A92:B1006, 2, FALSE)","v":{"$error":"#N/A"}}]
[{"$f":"VLOOKUP(B93,'Список птиц'!A93:B1007, 2, FALSE)","v":{"$error":"#N/A"}}]
[{"$f":"VLOOKUP(B94,'Список птиц'!A94:B1008, 2, FALSE)","v":{"$error":"#N/A"}}]
[{"$f":"VLOOKUP(B95,'Список птиц'!A95:B1009, 2, FALSE)","v":{"$error":"#N/A"}}]
[{"$f":"VLOOKUP(B96,'Список птиц'!A96:B1010, 2, FALSE)","v":{"$error":"#N/A"}}]
[{"$f":"VLOOKUP(B97,'Список птиц'!A97:B1011, 2, FALSE)","v":{"$error":"#N/A"}}]
[{"$f":"VLOOKUP(B98,'Список птиц'!A98:B1012, 2, FALSE)","v":{"$error":"#N/A"}}]
[{"$f":"VLOOKUP(B99,'Список птиц'!A99:B1013, 2, FALSE)","v":{"$error":"#N/A"}}]
[{"$f":"VLOOKUP(B100,'Список птиц'!A100:B1014, 2, FALSE)","v":{"$error":"#N/A"}}]
[{"$f":"VLOOKUP(B101,'Список птиц'!A101:B1015, 2, FALSE)","v":{"$error":"#N/A"}}]
[{"$f":"VLOOKUP(B102,'Список птиц'!A102:B1016, 2, FALSE)","v":{"$error":"#N/A"}}]
[{"$f":"VLOOKUP(B103,'Список птиц'!A103:B1017, 2, FALSE)","v":{"$error":"#N/A"}}]
[{"$f":"VLOOKUP(B104,'Список птиц'!A104:B1018, 2, FALSE)","v":{"$error":"#N/A"}}]
[{"$f":"VLOOKUP(B105,'Список птиц'!A105:B1019, 2, FALSE)","v":{"$error":"#N/A"}}]
[{"$f":"VLOOKUP(B106,'Список птиц'!A106:B1020, 2, FALSE)","v":{"$error":"#N/A"}}]
[{"$f":"VLOOKUP(B107,'Список птиц'!A107:B1021, 2, FALSE)","v":{"$error":"#N/A"}}]
[{"$f":"VLOOKUP(B108,'Список птиц'!A108:B1022, 2, FALSE)","v":{"$error":"#N/A"}}]
[{"$f":"VLOOKUP(B109,'Список птиц'!A109:B1023, 2, FALSE)","v":{"$error":"#N/A"}}]
[{"$f":"VLOOKUP(B110,'Список птиц'!A110:B1024, 2, FALSE)","v":{"$error":"#N/A"}}]
[{"$f":"VLOOKUP(B111,'Список птиц'!A111:B1025, 2, FALSE)","v":{"$error":"#N/A"}}]
[{"$f":"VLOOKUP(B112,'Список птиц'!A112:B1026, 2, FALSE)","v":{"$error":"#N/A"}}]
[{"$f":"VLOOKUP(B113,'Список птиц'!A113:B1027, 2, FALSE)","v":{"$error":"#N/A"}}]
[{"$f":"VLOOKUP(B114,'Список птиц'!A114:B1028, 2, FALSE)","v":{"$error":"#N/A"}}]
[{"$f":"VLOOKUP(B115,'Список птиц'!A115:B1029, 2, FALSE)","v":{"$error":"#N/A"}}]
[{"$f":"VLOOKUP(B116,'Список птиц'!A116:B1030, 2, FALSE)","v":{"$error":"#N/A"}}]
[{"$f":"VLOOKUP(B117,'Список птиц'!A117:B1031, 2, FALSE)","v":{"$error":"#N/A"}}]
[{"$f":"VLOOKUP(B118,'Список птиц'!A118:B1032, 2, FALSE)","v":{"$error":"#N/A"}}]
[{"$f":"VLOOKUP(B119,'Список птиц'!A119:B1033, 2, FALSE)","v":{"$error":"#N/A"}}]
[{"$f":"VLOOKUP(B120,'Список птиц'!A120:B1034, 2, FALSE)","v":{"$error":"#N/A"}}]
[{"$f":"VLOOKUP(B121,'Список птиц'!A121:B1035, 2, FALSE)","v":{"$error":"#N/A"}}]
[{"$f":"VLOOKUP(B122,'Список птиц'!A122:B1036, 2, FALSE)","v":{"$error":"#N/A"}}]
[{"$f":"VLOOKUP(B123,'Список птиц'!A123:B1037, 2, FALSE)","v":{"$error":"#N/A"}}]
[{"$f":"VLOOKUP(B124,'Список птиц'!A124:B1038, 2, FALSE)","v":{"$error":"#N/A"}}]
[{"$f":"VLOOKUP(B125,'Список птиц'!A125:B1039, 2, FALSE)","v":{"$error":"#N/A"}}]
[{"$f":"VLOOKUP(B126,'Список птиц'!A126:B1040, 2, FALSE)","v":{"$error":"#N/A"}}]
[{"$f":"VLOOKUP(B127,'Список птиц'!A127:B1041, 2, FALSE)","v":{"$error":"#N/A"}}]
[{"$f":"VLOOKUP(B128,'Список птиц'!A128:B1042, 2, FALSE)","v":{"$error":"#N/A"}}]
[{"$f":"VLOOKUP(B129,'Список птиц'!A129:B1043, 2, FALSE)","v":{"$error":"#N/A"}}]
[{"$f":"VLOOKUP(B130,'Список птиц'!A130:B1044, 2, FALSE)","v":{"$error":"#N/A"}}]
[{"$f":"VLOOKUP(B131,'Список птиц'!A131:B1045, 2, FALSE)","v":{"$error":"#N/A"}}]
[{"$f":"VLOOKUP(B132,'Список птиц'!A132:B1046, 2, FALSE)","v":{"$error":"#N/A"}}]
[{"$f":"VLOOKUP(B133,'Список птиц'!A133:B1047, 2, FALSE)","v":{"$error":"#N/A"}}]
[{"$f":"VLOOKUP(B134,'Список птиц'!A134:B1048, 2, FALSE)","v":{"$error":"#N/A"}}]
[{"$f":"VLOOKUP(B135,'Список птиц'!A135:B1049, 2, FALSE)","v":{"$error":"#N/A"}}]
[{"$f":"VLOOKUP(B136,'Список птиц'!A136:B1050, 2, FALSE)","v":{"$error":"#N/A"}}]
[{"$f":"VLOOKUP(B137,'Список птиц'!A137:B1051, 2, FALSE)","v":{"$error":"#N/A"}}]
[{"$f":"VLOOKUP(B138,'Список птиц'!A138:B1052, 2, FALSE)","v":{"$error":"#N/A"}}]
[{"$f":"VLOOKUP(B139,'Список птиц'!A139:B1053, 2, FALSE)","v":{"$error":"#N/A"}}]
[{"$f":"VLOOKUP(B140,'Список птиц'!A140:B1054, 2, FALSE)","v":{"$error":"#N/A"}}]
[{"$f":"VLOOKUP(B141,'Список птиц'!A141:B1055, 2, FALSE)","v":{"$error":"#N/A"}}]
[{"$f":"VLOOKUP(B142,'Список птиц'!A142:B1056, 2, FALSE)","v":{"$error":"#N/A"}}]
[{"$f":"VLOOKUP(B143,'Список птиц'!A143:B1057, 2, FALSE)","v":{"$error":"#N/A"}}]
[{"$f":"VLOOKUP(B144,'Список птиц'!A144:B1058, 2, FALSE)","v":{"$error":"#N/A"}}]
[{"$f":"VLOOKUP(B145,'Список птиц'!A145:B1059, 2, FALSE)","v":{"$error":"#N/A"}}]
[{"$f":"VLOOKUP(B146,'Список птиц'!A146:B1060, 2, FALSE)","v":{"$error":"#N/A"}}]
[{"$f":"VLOOKUP(B147,'Список птиц'!A147:B1061, 2, FALSE)","v":{"$error":"#N/A"}}]
[{"$f":"VLOOKUP(B148,'Список птиц'!A148:B1062, 2, FALSE)","v":{"$error":"#N/A"}}]
[{"$f":"VLOOKUP(B149,'Список птиц'!A149:B1063, 2, FALSE)","v":{"$error":"#N/A"}}]
[{"$f":"VLOOKUP(B150,'Список птиц'!A150:B1064, 2, FALSE)","v":{"$error":"#N/A"}}]
[{"$f":"VLOOKUP(B151,'Список птиц'!A151:B1065, 2, FALSE)","v":{"$error":"#N/A"}}]
[{"$f":"VLOOKUP(B152,'Список птиц'!A152:B1066, 2, FALSE)","v":{"$error":"#N/A"}}]
[{"$f":"VLOOKUP(B153,'Список птиц'!A153:B1067, 2, FALSE)","v":{"$error":"#N/A"}}]
[{"$f":"VLOOKUP(B154,'Список птиц'!A154:B1068, 2, FALSE)","v":{"$error":"#N/A"}}]
[{"$f":"VLOOKUP(B155,'Список птиц'!A155:B1069, 2, FALSE)","v":{"$error":"#N/A"}}]
[{"$f":"VLOOKUP(B156,'Список птиц'!A156:B1070, 2, FALSE)","v":{"$error":"#N/A"}}]
[{"$f":"VLOOKUP(B157,'Список птиц'!A157:B1071, 2, FALSE)","v":{"$error":"#N/A"}}]
[{"$f":"VLOOKUP(B158,'Список птиц'!A158:B1072, 2, FALSE)","v":{"$error":"#N/A"}}]

{"sheet":"Список птиц","index":2,"n_rows":916,"n_cols":2,"rows_kept":916,"cut":false,"hidden":true,"merged":[]}
["Наименование"]
["Авдотка (Burhinus oedicnemus)","5498bfd667"]
["Аист белый (Ciconia ciconia)","d1ac31392e"]
["Аист дальневосточный (Ciconia boyciana)","1095b10807"]
["Аист черный (Ciconia nigra)","e6d82f0dd3"]
["Альбатроc чернобровый (Thalassarche melanophris)","a0f7f79c74"]
["Альбатрос белоспинный (Phoebastria albatrus)","8c37ea3143"]
["Альбатрос темноспинный (Phoebastria immutabilis)","7dd7f8a198"]
["Альбатрос черноногий (Phoebastria nigripes)","6c657cec62"]
["Баклан берингов (Phalacrocorax pelagicus)","c8d76e9054"]
["Баклан большой (Phalacrocorax carbo)","8b6d0d68df"]
["Баклан краснолицый (Phalacrocorax urile)","386bf140b4"]
["Баклан малый (Phalacrocorax pygmeus)","f914feeee5"]
["Баклан стеллеров (Phalacrocorax perspicillatus)","5b49a2f9b2"]
["Баклан уссурийский (Phalacrocorax capillatus)","a4ef90271d"]
["Баклан ушастый (Phalacrocorax auritus)","36d9f0a433"]
["Баклан хохлатый (Phalacrocorax aristotelis)","98e1049c90"]
["Балобан (Falco cherrug)","e9aa8ad3d4"]
["Бегунок обыкновенный (Cursorius cursor)","bf867b3987"]
["Бекас азиатский (Gallinago stenura)","b82228e05e"]
["Бекас американский (Gallinago delicata)","4972d70ee4"]
["Бекас обыкновенный (Gallinago gallinago)","edd6877b34"]
["Бекас цветной (Rostratula benghalensis)","2c6dbf5c9d"]
["Бекас японский (Gallinago hardwickii)","16bc396ecd"]
["Белобровик (Turdus iliacus)","c7e1053531"]
["Белобрюшка (Aethia psittacula)","93d81acc35"]
["Белоглазка буробокая (Zosterops erythropleurus)","d57b508e87"]
["Белоглазка японская (Zosterops japonicus)","e635afdacd"]
["Белоножка (Enicurus scouleri)","cc8d912702"]
["Береговушка (Riparia riparia)","624fded293"]
["Береговушка бледная (Riparia diluta)","3516325c06"]
["Береговушка малая (Riparia chinensis)","298026b1da"]
["Беркут (Aquila chrysaetos)","201cce499d"]
["Бормотушка северная (Iduna caligata)","119dd7f5ea"]
["Бормотушка южная (Iduna rama)","7ca4357978"]
["Бородач (Gypaetus barbatus)","af7927d829"]
["Бургомистр (Larus hyperboreus)","6e39a049e8"]
["Буревестник балеарский (Puffinus mauretanicus)","0dc6e38cbb"]
["Буревестник бледноногий (Puffinus carneipes)","6530da6465"]
["Буревестник большой пестробрюхий (Puffinus gravis)","4717c51e14"]
["Буревестник буллеров (Puffinus bulleri)","6c6d19604b"]
["Буревестник левантский (Puffinus yelkouan)","1ebf2bb7bc"]
["Буревестник малый (Puffinus puffinus)","6e41f0c429"]
["Буревестник пестролицый (Calonectris leucomelas)","9d3553614a"]
["Буревестник серый (Puffinus griseus)","746fc58200"]
["Буревестник средиземноморский (Calonectris diomedea)","1e09097d21"]
["Буревестник тонкоклювый (Puffinus tenuirostris)","3cf59fdacd"]
["Бюль-бюль белощекий (Pycnonotus leucogenys)","1a4d550905"]
["Бюль-бюль китайский (Pycnonotus sinensis)","87f8de8070"]
["Бюль-бюль короткопалый (Microscelis amaurotis)","0cc567fa00"]
["Бюль-бюль черный (Hypsipetes leucocephalus)","2e4e0bf4ea"]
["Вальдшнеп (Scolopax rusticola)","cd8302a9ea"]
["Варакушка (Luscinia svecica)","3c99d8126a"]
["Веретенник азиатский бекасовидный (Limnodromus semipalmatus)","3d3cb233cf"]
["Веретенник американский бекасовидный (Limnodromus scolopaceus)","460c7a77fe"]
["Веретенник большой (Limosa limosa)","9a165f9d50"]
["Веретенник малый (Limosa lapponica)","0ee2f176b0"]
["Вертишейка (Jynx torquilla)","ef1b21a20c"]
["Вильсония малая (Wilsonia pusilla)","ff8e1e573f"]
["Волчок (Ixobrychus minutus)","8d64cb2171"]
["Воробей афганский земляной (Pyrgilauda theresae)","a76740e5ce"]
["Воробей домовый (Passer domesticus)","712eb95720"]
["Воробей индийский (Passer indicus)","7f098c459a"]
["Воробей каменный (Petronia petronia)","92072028ec"]
["Воробей короткопалый (Carpospiza brachydactyla)","46ccac38f1"]
["Воробей монгольский земляной (Pyrgilauda davidiana)","d09c903e27"]
["Воробей полевой (Passer montanus)","4f0c2614c2"]
["Воробей пустынный (Passer zarudnyi)","f3abf28566"]
["Воробей рыжий (Passer rutilans)","9fdd5f5652"]
["Воробей саксаульный (Passer ammodendri)","ca69a31825"]
["Воробей снежный (Montifringilla nivalis)","07093c771d"]
["Воробей черногрудый (Passer hispaniolensis)","34f401ac36"]
["Ворон (Corvus corax)","b8ee91e9b0"]
["Ворон пустынный (Corvus ruficollis)","822686898e"]
["Ворона большеклювая (Corvus macrorhynchos)","fff274499d"]
["Ворона серая (Corvus cornix)","2075c7f33f"]
["Ворона черная (Corvus corone)","66282945b2"]
["Ворона черная восточная (Corvus orientalis)","3f2aae24d7"]
["Воронок восточный (Delichon dasypus)","fce7ee7d17"]
["Выпь амурская (Ixobrychus eurhythmus)","c5512ee597"]
["Выпь большая (Botaurus stellaris)","60ff7a5f78"]
["Выпь китайская (Ixobrychus sinensis)","723cdb16a8"]
["Выпь охристая (Ixobrychus cinnamomeus)","e43eed6409"]
["Выпь японская (Gorsachius goisagi)","7c207e8f33"]
["Вьюрок американский (Leucosticte tephrocotis)","23c3f2ee00"]
["Вьюрок буланый (Rhodospiza obsoleta)","d4665ff9bb"]
["Вьюрок гималайский (Leucosticte nemoricola)","7bcb4a710a"]
["Вьюрок жемчужный (Leucosticte brandti)","a8d0c5757e"]
["Вьюрок канареечный (Serinus serinus)","8d3159cfe3"]
["Вьюрок красношапочный (Serinus pusillus)","a0237bd30b"]
["Вьюрок красный (Carpodacus puniceus)","1d27ae5e25"]
["Вьюрок монгольский пустынный (Bucanetes mongolicus)","6146ca871d"]
["Вьюрок сибирский (Leucosticte arctoa)","accfb3ee69"]
["Вьюрок толстоклювый пустынный (Bucanetes githagineus)","c26e2e52fb"]
["Вяхирь обыкновенный (Columba palumbus)","8d2b35725c"]
["Вяхирь японский (Columba janthina)","9d4fc208ae"]
["Гага обыкновенная (Somateria mollissima)","ca639d2098"]
["Гага очковая (Somateria fischeri)","5d48d603c4"]
["Гага сибирская (Polysticta stelleri)","c27ddfbd05"]
["Гага-гребенушка (Somateria spectabilis)",5015445066]
["Гагара белоклювая (Gavia adamsii)","8994d85a28"]
["Гагара белошейная (Gavia pacifica)","9bd2032836"]
["Гагара краснозобая (Gavia stellata)","d53d63d6fb"]
["Гагара чернозобая (Gavia arctica)","f33f32ba92"]
["Гагара черноклювая (Gavia immer)","4d7baf916b"]
["Гагарка (Alca torda)","652c5397b1"]
["Гаичка гирканская (Parus hyrcanus)","5de5b1cecb"]
["Гаичка джунгарская (Parus songarus)","2985a3b339"]
["Гаичка сероголовая (Parus cinctus)","1b7a2a536a"]
["Гаичка средиземноморская (Parus lugubris)","5e35b519b5"]
["Гаичка черноголовая (Parus palustris)","d73ff5c9e9"]
["Галка (Corvus monedula)","00b1b243c9"]
["Галка альпийская (Pyrrhocorax graculus)","2271cae2d5"]
["Галка даурская (Corvus dauuricus)","773a1f3aca"]
["Галстучник обыкновенный (Charadrius hiaticula)","a616f8c015"]
["Галстучник перепончатопалый (Charadrius semipalmatus)","d3c540bf24"]
["Гаршнеп (Lymnocryptes minimus)","de00bbc065"]
["Глупыш (Fulmarus glacialis)","d37adaf747"]
["Глухарь (Tetrao urogallus)","93df259dac"]
["Глухарь каменный (Tetrao urogalloides)","93940eab1f"]
["Говорушка красноногая (Rissa brevirostris)","3cf951b18a"]
["Гоголь (Bucephala clangula)","a7f0bf641a"]
["Гоголь исландский (Bucephala islandica)","3861b2179c"]
["Гоголь малый (Bucephala albeola)","edfea85985"]
["Голубок морской (Larus genei)","2c749decb3"]
["Голубь белогрудый (Columba leuconota)","5ce348a84d"]
["Голубь бурый (Columba eversmanni)","bf1613296b"]
["Голубь сизый (Columba livia)","841f7ed3f9"]
["Голубь скалистый (Columba rupestris)","6e277c3192"]
["Голубь японский зеленый (Treron sieboldii)","1514655bdf"]
["Горихвостка водяная (Chaimarrornis leucocephalus)","9e38245d63"]
["Горихвостка краснобрюхая (Phoenicurus erythrogastrus)","45bbe19ce8"]
["Горихвостка красноспинная (Phoenicurus erythronotus)","c7d6c3a837"]
["Горихвостка садовая (Phoenicurus phoenicurus)","bb7b5117b1"]
["Горихвостка седоголовая (Phoenicurus caeruleocephala)","f7f8599c0a"]
["Горихвостка сибирская (Phoenicurus auroreus)","dfe82ba9d3"]
["Горихвостка сизая (Rhyacornis fuliginosa)","057ea9787a"]
["Горихвостка-чернушка (Phoenicurus ochruros)","783cd067d1"]
["Горлица большая (Streptopelia orientalis)","c0f0dd76a4"]
["Горлица капская (Oena capensis)","0589fa245c"]
["Горлица кольчатая (Streptopelia decaocto)","29e182b4e8"]
["Горлица короткохвостая (Streptopelia tranquebarica)","d168242163"]
["Горлица малая (Streptopelia senegalensis)","87df96d1e6"]
["Горлица обыкновенная (Streptopelia turtur)","bfa1402886"]
["Грач (Corvus frugilegus)","1a382e3976"]
["Гриф индийский (Gyps bengalensis)","8dd82beb5c"]
["Гриф черный (Aegypius monachus)","093896396c"]
["Грязовик (Limicola falcinellus)","814adf305c"]
["Гуменник (Anser fabalis)","fccf68e75c"]
["Гуменник короткоклювый (Anser brachyrhynchus)","bc7abb7f2f"]
["Гусь белолобый (Anser albifrons)","a12879a0d3"]
["Гусь белый (Anser caerulescens)","ef7aba3178"]
["Гусь горный (Anser indicus)","222f78483b"]
["Гусь Росса (Anser rossii)","219ebce5a4"]
["Гусь серый (Anser anser)","f4028d5483"]
["Гусь-белошей (Anser canagicus)","a9556f01d0"]
["Дербник (Falco columbarius)","0f6084c161"]
["Деряба (Turdus viscivorus)","49567d2540"]
["Джек (Chlamydotis macqueenii)","5412f42772"]
["Дикуша (Falcipennis falcipennis)","e7296cda6c"]
["Дрозд белобрюхий (Turdus cardis)","2128fb5b78"]
["Дрозд белогорлый (Monticola gularis)","4f240222d6"]
["Дрозд белозобый (Turdus torquatus)","741bcc894c"]
["Дрозд бледный (Turdus pallidus)","f6954b0421"]
["Дрозд бурый (Turdus eunomus)","f77c6ddad5"]
["Дрозд золотистый (Turdus chrysolaus)","bbc1cc3721"]
["Дрозд краснозобый (Turdus ruficollis)","e7f289149d"]
["Дрозд малый (Catharus minimus)","165fb3596a"]
["Дрозд Науманна (Turdus naumanni)","9d62ae178c"]
["Дрозд одноцветный (Turdus unicolor)","1fd8685543"]
["Дрозд оливковый (Turdus obscurus)","2818faa5d8"]
["Дрозд певчий (Turdus philomelos)","f7d49b7dcb"]
["Дрозд пестрый (Zoothera dauma)","ce588c4657"]
["Дрозд пестрый каменный (Monticola saxatilis)","c431078c66"]
["Дрозд разноголосый (Ixoreus naevius)","bd26e64e94"]
["Дрозд свэнсонов (Catharus ustulatus)","257a544547"]
["Дрозд сибирский (Zoothera sibirica)","b6ab6c882a"]
["Дрозд сизый (Turdus hortulorum)","85c6c39345"]
["Дрозд синий каменный (Monticola solitarius)","81c7e0c18b"]
["Дрозд странствующий  (Turdus migratorius)","3477ad4e42"]
["Дрозд чернозобый (Turdus atrogularis)","7d84f5e058"]
["Дрозд черный (Turdus merula)","a45aa98bfc"]
["Дрозд-отшельник (Catharus guttatus)",5052946118]
["Дронго индийский (Dicrurus hottentottus)","cf923bca61"]
["Дронго пепельный (Dicrurus leucophaeus)","fe2434d6a2"]
["Дронго черный (Dicrurus macrocercus)","d852972672"]
["Дрофа (Otis tarda)","edccc827e4"]
["Дубонос арчовый (Mycerobas carnipes)","d388babe05"]
["Дубонос большой черноголовый (Eophona personata)","aa33b11c54"]
["Дубонос малый черноголовый (Eophona migratoria)","06ef51f8ad"]
["Дубонос обыкновенный (Coccothraustes coccothraustes)","c16a750668"]
["Дубровник (Ocyris aureolus)","2a38f1f080"]
["Дупель горный (Gallinago solitaria)","6d64c3d392"]
["Дупель лесной (Gallinago megala)","07643a16f1"]
["Дупель обыкновенный (Gallinago media)","082f4665d3"]
["Дутыш (Calidris melanotos)","5d9ee43ff6"]
["Дятел белокрылый (Dendrocopos leucopterus)","7e5eb95e49"]
["Дятел белоспинный (Dendrocopos leucotos)","8062ac5b00"]
["Дятел большой острокрылый (Dendrocopos canicapillus)","779488c3dd"]
["Дятел большой-пестрый (Dendrocopos major)","3870a98fad"]
["Дятел зеленый (Picus viridis)","99e0957cb5"]
["Дятел малый острокрылый (Dendrocopos kizuki)","6516c5f239"]
["Дятел малый-пестрый (Dendrocopos minor)","153328e4fd"]
["Дятел рыжебрюхий (Hypopicus hyperythrus)","909477313d"]
["Дятел седой (Picus canus)","6105804c8c"]
["Дятел сирийский (Dendrocopos syriacus)","c3f53bd84e"]
["Дятел средний-пестрый (Dendrocopos medius)","15421ee9d9"]
["Дятел трехпалый (Picoides tridactylus)","a8b9ea5671"]
["Дятел чешуйчатый (Picus squamatus)","c2eb39b952"]
["Жаворонок белокрылый (Melanocorypha leucoptera)","7d6997b6f6"]
["Жаворонок двупятнистый (Melanocorypha bimaculata)","37136968ee"]
["Жаворонок индийский (Alauda gulgula)","68256dd9c4"]
["Жаворонок лесной (Lullula arborea)","32e1be3272"]
["Жаворонок малый (Calandrella brachydactyla)","8b9e029008"]
["Жаворонок монгольский (Melanocorypha mongolica)","9fa0ec17c2"]
["Жаворонок полевой (Alauda arvensis)","8787c67cdd"]
["Жаворонок пустынный (Ammomanes deserti)","5e0533227c"]
["Жаворонок рогатый (Eremophila alpestris)","c9deeb51b3"]
["Жаворонок серый (Calandrella rufescens)","fd63f60a27"]
["Жаворонок солончаковый (Calandrella cheleensis)","67e1d77de7"]
["Жаворонок степной (Melanocorypha calandra)","ec6a530145"]
["Жаворонок тонкоклювый (Calandrella acutirostris)","60df6e4e0c"]
["Жаворонок хохлатый (Galerida cristata)","fdd4ac3701"]
["Жаворонок черный (Melanocorypha yeltoniensis)","6470390ba2"]
["Жаворонок японский (Alauda japonica)","986c273bbe"]
["Желна (Dryocopus martius)","54a72ca310"]
["Желтозобик (Tryngites subruficollis)","7af2beb451"]
["Жулан буланый (рыжехвостый) (Lanius isabellinus)","ca766589ae"]
["Жулан индийский (Lanius vittatus)","18d7a07e50"]
["Жулан обыкновенный (Lanius collurio)","e7c65227a9"]
["Жулан сибирский (Lanius cristatus)","640af068c5"]
["Жулан туркестанский (Lanius phoenicuroides)","8ea039dc07"]
["Журавль даурский (Grus vipio)","b57f5fbd23"]
["Журавль канадский (Grus canadensis)","c809692ce1"]
["Журавль серый (Grus grus)","1de673e0fe"]
["Журавль черный (Grus monacha)","85e9a863fb"]
["Журавль японский (Grus japonensis)","f050dc56f6"]
["Журавль-красавка (Anthropoides virgo)","04030410e3"]
["Завирушка альпийская (Prunella collaris)","78655b1b9c"]
["Завирушка бледная (Prunella fulvescens)","f4f2516156"]
["Завирушка гималайская (Prunella himalayana)","ace3bc791c"]
["Завирушка Козлова (Prunella koslowi)","90a7a0e143"]
["Завирушка лесная (Prunella modularis)","bf9b5c03aa"]
["Завирушка пестрая (Prunella ocularis)","06ad0e1681"]
["Завирушка сибирская (Prunella montanella)","2ab3577460"]
["Завирушка черногорлая (Prunella atrogularis)","a548c528be"]
["Завирушка японская (Prunella rubida)","b336d604d8"]
["Зарянка (Erithacus rubecula)","f73e066614"]
["Зарянка японская (Luscinia akahige)","d987083502"]
["Зеленушка (Chloris chloris)","f084a9fd30"]
["Зеленушка китайская (Chloris sinica)","ddd94b2648"]
["Зимняк (Buteo lagopus)","d94f159c63"]
["Зимородок большой пегий (Megaceryle lugubris)","d15fa3741e"]
["Зимородок красноносый (Halcyon smyrnensis)","8d25279fb6"]
["Зимородок малый пегий (Ceryle rudis)","3a0d6520ba"]
["Зимородок обыкновенный (Alcedo atthis)","3c28af7147"]
["Зимородок ошейниковый (Halcyon pileata)","627da83e02"]
["Зимородок рыжий (Halcyon coromanda)","c3e3ed66bd"]
["Змеешейка чернобрюхая (Anhinga melanogaster) ","61709ccafb"]
["Змееяд (Circaetus gallicus)","726498c1c8"]
["Зонотрихия болотная (Melospiza georgiana)","fa9fe0f8b8"]
["Зуек восточный (Charadrius veredus)","fc6be1b972"]
["Зуек двугалстучный (Charadrius vociferus)","77025092bf"]
["Зуек каспийский (Charadrius asiaticus)","8c43a7e587"]
["Зуек малый (Charadrius dubius)","17846e32bd"]
["Зуек монгольский (Charadrius mongolus)","7604b7fc43"]
["Зуек морской (Charadrius alexandrinus)","5c3d93568c"]
["Зуек толстоклювый (Charadrius leschenaultii)","2cdb3820bb"]
["Зуек уссурийский (Charadrius placidus)","8d0fa3739d"]
["Зяблик (Fringilla coelebs)","ab24dd4b91"]
["Ибис индийский (Threskiornis melanocephalus)","407cae6a3a"]
["Ибис красноногий (Nipponia nippon)","e11cf3ae66"]
["Ибис священный (Threskiornis aethiopicus)","1da041b1f9"]
["Иволга китайская (Oriolus chinensis)","75875d5979"]
["Иволга обыкновенная (Oriolus oriolus)","2a0920458c"]
["Ипатка (Fratercula corniculata)","8501b7ead7"]
["Казарка белощекая (Branta leucopsis)","f6c8beb946"]
["Казарка канадская (Branta canadensis)","b09074b55e"]
["Казарка краснозобая (Branta ruficollis)","7f45bc036d"]
["Казарка малая канадская (Branta hutchinsii)","ae8a3e5b6e"]
["Казарка черная (Branta bernicla)","19c27c7792"]
["Кайра толстоклювая (Uria lomvia)","03246686d2"]
["Кайра тонкоклювая (Uria aalge)","6f645495ae"]
["Каменка златогузая (Oenanthe chrysopygia)","c0ef2a6146"]
["Каменка курдистанская (Oenanthe xanthoprymna)","2018e33aee"]
["Каменка обыкновенная (Oenanthe oenanthe)","10a774f21e"]
["Каменка пустынная (Oenanthe deserti)","65b5097f38"]
["Каменка черная (Oenanthe picata)","0e96540e55"]
["Каменка черноухая (Oenanthe melanoleuca)","9de096e84a"]
["Каменка черношейная (Oenanthe finschii)","d52bc42d01"]
["Каменка-плешанка (Oenanthe pleschanka)","891c4924f3"]
["Каменка-плясунья (Oenanthe isabellina)","a2b06b4f07"]
["Каменушка (Histrionicus histrionicus)","c91aee2e57"]
["Камнешарка обыкновенная (Arenaria interpres)","4774ae78b1"]
["Камнешарка черная (Arenaria melanocephala)","335575ade5"]
["Камышевка бамбуковая (Horeites diphone)","6a8fe632d0"]
["Камышевка болотная (Acrocephalus palustris)","595f015e02"]
["Камышевка большеклювая (Acrocephalus orinus)","f9064eef6c"]
["Камышевка вертлявая (Acrocephalus paludicola)","d967e9697c"]
["Камышевка дроздовидная (Acrocephalus arundinaceus)","39e748a566"]
["Камышевка дроздовидная восточная (Acrocephalus orientalis)","3bae2cb3a8"]
["Камышевка дроздовидная южная (Acrocephalus stentoreus)","d9e23e346c"]
["Камышевка индийская (Acrocephalus agricola)","a0bb606611"]
["Камышевка короткокрылая (Horeites canturians)","19f74b15ea"]
["Камышевка маньчжурская (Acrocephalus tangorum)","60e20b7ba4"]
["Камышевка пестроголовая (Acrocephalus bistrigiceps)","f0b909d9f4"]
["Камышевка просяная (Acrocephalus sorghophilus)","27f4c75d7e"]
["Камышевка садовая (Acrocephalus dumetorum)","97a88f8ede"]
["Камышевка толстоклювая (Phragmaticola aedon)","f8201238a7"]
["Камышевка тонкоклювая (Acrocephalus melanopogon)","fad3ab7c5e"]
["Камышевка тростниковая (Acrocephalus scirpaceus)","4c34f4ada2"]
["Камышевка широкохвостая (Cettia cetti)","e054d53454"]
["Камышевка-барсучок (Acrocephalus schoenobaenus)","21470fb687"]
["Камышница обыкновенная (Gallinula chloropus)","b924fd74dc"]
["Камышница рогатая (Gallicrex cinerea)","5a543eabd3"]
["Канюк (Buteo buteo)","fb1a41114d"]
["Каравайка (Plegadis falcinellus)","cfcec41b9b"]
["Кардинал индиговый овсянковый (Passerina cyanea)","c89d5a06fb"]
["Касатка (Anas falcata)","161956f48c"]
["Качурка мадейрская (Oceanodroma castro)","471512c36d"]
["Качурка малая (Oceanodroma monorhis)","a1337cf32a"]
["Качурка прямохвостая (Hydrobates pelagicus)","4ac946fd9b"]
["Качурка северная (Oceanodroma leucorhoa)","71c03c78ef"]
["Качурка сизая (Oceanodroma furcata)","062ee44231"]
["Кваква зеленая (Butorides striata)","5c2193ddb0"]
["Кваква обыкновенная (Nycticorax nycticorax)","fda51d64c3"]
["Кедровка (Nucifraga caryocatactes)","4ab63f0234"]
["Кеклик (Alectoris chukar)","0ccb2ffdc5"]
["Клест белокрылый (Loxia leucoptera)","d465806554"]
["Клест-еловик (Loxia curvirostra)","0ccefb7f52"]
["Клест-сосновик (Loxia pytyopsittacus)","357dfc2f95"]
["Клинтух (Columba oenas)","f6ab01376d"]
["Клуша западная (Larus fuscus)","80da2cd5f2"]
["Клушица (Pyrrhocorax pyrrhocorax)","5964c32547"]
["Князек (Parus cyanus)","a0684bb861"]
["Князек желтогрудый (Parus flavipectus)","34890b4176"]
["Кобчик (Falco vespertinus)","954db7927a"]
["Кобчик амурский (Falco amurensis)","c0821b6309"]
["Козодой большой (Caprimulgus indicus)","8890a820e7"]
["Козодой буланый (Caprimulgus aegyptius)","6db672a3de"]
["Козодой обыкновенный (Caprimulgus europaeus)",2798346899]
["Колибри охристый (Selasphorus rufus)","2f77983aa8"]
["Колпица малая (Platalea minor)","234bc47eb6"]
["Колпица обыкновенная (Platalea leucorodia)","59ea7ba2e5"]
["Комароловка сероголовая (Culicicapa ceylonensis)","4550b1f525"]
["Конек Годлевского (Anthus godlewskii)","c3cc03df4c"]
["Конек гольцовый (Anthus rubescens)","87a311c832"]
["Конек горный (Anthus spinoletta)","18533d85d8"]
["Конек краснозобый (Anthus cervinus)","c8497487a0"]
["Конек лесной (Anthus trivialis)","c620f62d26"]
["Конек луговой (Anthus pratensis)","87c4850045"]
["Конек Мензбира (Anthus menzbieri)","fc1ca55d39"]
["Конек полевой (Anthus campestris)","d504d9582e"]
["Конек пятнистый (Anthus hodgsoni)","6266a00d1d"]
["Конек сибирский (Anthus gustavi)","32bb4e065e"]
["Конек скальный (Anthus petrosus)","1a3e0ccaf7"]
["Конек степной (Anthus richardi)","f2b93707c2"]
["Коноплянка обыкновенная (Acanthis cannabina)","450aff4ac5"]
["Конюга алеутская (Ptychoramphus aleuticus)","b8e745d63c"]
["Конюга большая (Aethia cristatella)","4a38dab208"]
["Конюга малая (Aethia pygmaea)","fe450e7d32"]
["Конюга-крошка (Aethia pusilla)","4d1b37b57e"]
["Королек желтоголовый (Regulus regulus)","0787fe0778"]
["Королек красноголовый (Regulus ignicapilla)","bac63699ab"]
["Королек рубиноголовый (Regulus calendula)","f0844bbad1"]
["Коростель (Crex crex)","d4e247586f"]
["Короткохвостка (Urosphena squameiceps)","cb008dc3ec"]
["Коршун дымчатый (Elanus caeruleus)","5f2d1a2f60"]
["Коршун красный (Milvus milvus)","6a1b21b998"]
["Коршун черный (Milvus migrans)","06c6475194"]
["Коэль (Eudynamys scolopaceus)","d85a49aa11"]
["Крапивник (Troglodytes troglodytes)","91d8776e25"]
["Краснозобик (Calidris ferruginea)","0e4d2a98fd"]
["Красношейка черногрудая (Luscinia pectoralis)","c867defae1"]
["Крачка белокрылая (Chlidonias leucopterus)","e18346e586"]
["Крачка белощекая (Chlidonias hybrida)","7aa92da1da"]
["Крачка камчатская (Sterna camtschatica)","78dd97fbc7"]
["Крачка малая (Sterna albifrons)","f9b1c37de1"]
["Крачка пестроносая (Thalasseus sandvicensis)","5b569529a3"]
["Крачка полярная (Sterna paradisaea)","23b3b07e68"]
["Крачка речная (Sterna hirundo)","b410f29c1b"]
["Крачка чайконосая (Gelochelidon nilotica)","d0934f4d4e"]
["Крачка черная (Chlidonias niger)","26d97c60c2"]
["Кречет алтайский (Falco altaicus)","caf282c880"]
["Кречет обыкновенный (Falco rusticolus)","ede22b938b"]
["Кречетка (Chettusia gregaria)","61b9288387"]
["Кроншнеп большой (Numenius arquata)","471ab9c263"]
["Кроншнеп дальневосточный (Numenius madagascariensis)","2da5dd8500"]
["Кроншнеп средний (Numenius phaeopus)","e59fe4d11c"]
["Кроншнеп таитянский (Numenius tahitiensis)","68ed9ca18d"]
["Кроншнеп тонкоклювый (Numenius tenuirostris)","032803373f"]
["Кроншнеп эскимосский (Numenius borealis)","7b5aad682b"]
["Кроншнеп-малютка (Numenius minutus)","00a6397a53"]
["Крохаль большой (Mergus merganser)","50192f4a7b"]
["Крохаль длинноносый (Mergus serrator)","3b92ba10fa"]
["Крохаль чешуйчатый (Mergus squamatus)","de84da7cac"]
["Кряква (Anas platyrhynchos)","3a991b817e"]
["Кряква пестроносая (Anas poecilorhyncha)","daeec8839e"]
["Кряква черная (Anas zonorhyncha)","dfd67e9de7"]
["Кукушка глухая (Cuculus optatus)","22fe12f82e"]
["Кукушка индийская (Cuculus micropterus)","1064b67fcf"]
["Кукушка малая (Cuculus poliocephalus)","7d71c301b0"]
["Кукушка обыкновенная (Cuculus canorus)","44fab4939a"]
["Кукушка хохлатая (Clamator glandarius)","bf5c77a0b2"]
["Кукушка хохлатая каштановокрылая (Clamator coromandus)","89eaa35f09"]
["Кукушка ширококрылая (Hierococcyx fugax)","6de305ab8c"]
["Кукша (Perisoreus infaustus)","9f968473eb"]
["Кулик-воробей (Calidris minuta)","85f3483698"]
["Кулик-сорока (Haematopus ostralegus)","259a9b834b"]
["Кулик-сорока черный (Haematopus bachmani)","186032bacd"]
["Кумай (Gyps himalayensis)","eb68634983"]
["Курганник мохноногий (Buteo hemilasius)","6c7029f43f"]
["Курганник обыкновенный (Buteo rufinus)","aeccc88ac2"]
["Куропатка белая (Lagopus lagopus)","cf6d4b96c8"]
["Куропатка бородатая (Perdix dauurica)","a271cdbba3"]
["Куропатка пустынная (Ammoperdix griseogularis)","51583d893b"]
["Куропатка серая (Perdix perdix)","7661e8a1b8"]
["Куропатка тундряная (Lagopus muta)","8f6ecd9c59"]
["Лаггар (Falco jugger)","a4b45b7959"]
["Лазоревка (Parus caeruleus)","82605351e1"]
["Ласточка белолобая (Petrochelidon pyrrhonota)","015753c835"]
["Ласточка большая (Progne subis)","85e2185202"]
["Ласточка городская (Delichon urbicum)","507092a9f6"]
["Ласточка деревенская (Hirundo rustica)","4b6e7a0117"]
["Ласточка древесная (Tachycineta bicolor)","5fe2707c88"]
["Ласточка нитехвостая (Hirundo smithii)","1ea306a055"]
["Ласточка рыжепоясничная (Cecropis daurica)","6ab7217a18"]
["Ласточка скалистая (Ptyonoprogne rupestris)","5d7a980e2a"]
["Лебедь американский (Cygnus columbianus)","04cc2c6848"]
["Лебедь малый (Cygnus bewickii)","7fad0c59de"]
["Лебедь-кликун (Cygnus cygnus)","5bbcd45d23"]
["Лебедь-трубач (Cygnus buccinator)","7f4b098d61"]
["Лебедь-шипун (Cygnus olor)","217772df19"]
["Личинкоед серый (Pericrocotus divaricatus)","388c175c3d"]
["Лопатень (Eurynorhynchus pygmeus)","7b8da50737"]
["Лунь болотный (Circus aeruginosus)","3d2f1a0daa"]
["Лунь восточный (Circus spilonotus)","be0cd2b5af"]
["Лунь луговой (Circus pygargus)","6af9fcde0e"]
["Лунь пегий (Circus melanoleucos)","db073db428"]
["Лунь полевой (Circus cyaneus)","b32d15772c"]
["Лунь степной (Circus macrourus)","578f783dbe"]
["Луток (Mergellus albellus)","2d11b4c017"]
["Лысуха (Fulica atra)","502d1523fb"]
["Люрик (Alle alle)","27ac5429a3"]
["Майна (Acridotheres tristis)","db543a5bd9"]
["Майна хохлатая (Acridotheres cristatellus)","af368ddd19"]
["Мандаринка (Aix galericulata)","2a9289568d"]
["Могильник (Aquila heliaca)","e2eef44508"]
["Моевка (Rissa tridactyla)","d026f94f0d"]
["Мородунка (Xenus cinereus)","3b61d332bd"]
["Морянка (Clangula hyemalis)","f2a221339b"]
["Московка (Parus ater)","c0344a74b4"]
["Мухоловка даурская желтоспинная (Ficedula zanthopygia)","9c57c1aac7"]
["Мухоловка малая (Ficedula parva)","c6fcfe61aa"]
["Мухоловка малая восточная (Ficedula albicilla)","13097226aa"]
["Мухоловка пестрогрудая (Muscicapa griseisticta)","9ff033b4af"]
["Мухоловка полуошейниковая (Ficedula semitorquata)","aac4267f1c"]
["Мухоловка райская (Terpsiphone paradisi)","98c922956c"]
["Мухоловка райская черная (Terpsiphone atrocaudata)","153d90af64"]
["Мухоловка рыжехвостая (Muscicapa ruficauda)","34a0305436"]
["Мухоловка серая (Muscicapa striata)","6bf8c32ffd"]
["Мухоловка сибирская (Muscicapa sibirica)","98606ab071"]
["Мухоловка синяя (Cyanoptila cyanomelana)","95f8ef63d1"]
["Мухоловка таежная (Ficedula mugimaki)","caada0dab2"]
["Мухоловка ширококлювая (Muscicapa dauurica)","d44f5c9f82"]
["Мухоловка японская желтоспинная (Ficedula narcissina)","6f80c5229c"]
["Мухоловка-белошейка (Ficedula albicollis)","4765163cd8"]
["Мухоловка-пеструшка (Ficedula hypoleuca)","601c5230da"]
["Некатарница палестинская (Cinnyris osea)","05d7fc5dde"]
["Неясыть бородатая (Strix nebulosa)","b7599205f8"]
["Неясыть длиннохвостая (Strix uralensis)","94eef36346"]
["Неясыть серая (Strix aluco)","87c690383e"]
["Нырок белоглазый (Aythya nyroca)","ce34a0d588"]
["Нырок Бэра (Aythya baeri)","d2bb60670f"]
["Нырок кольчатый (Aythya collaris)","7fdc269d9d"]
["Нырок красноголовый (Aythya ferina)","7e0ca53d5a"]
["Нырок красноносый (Netta rufina)","3696c31a7f"]
["Нырок парусиновый (Aythya valisineria)","3150e1a067"]
["Овсянка белобровая (Zonotrichia leucophrys)","e720c73ca0"]
["Овсянка белошапочная (Emberiza leucocephalos)","7dc9b2755d"]
["Овсянка воробьиная (Spizella arborea)","6a986d18b2"]
["Овсянка воробьиная малая (Spizella passerina)","013c8dc205"]
["Овсянка Годлевского (Emberiza godlewskii)",7753938652]
["Овсянка горная (Emberiza cia)","c3752b1576"]
["Овсянка желтая японская (Ocyris sulphuratus)","a84f6582a2"]
["Овсянка желтобровая (Ocyris chrysophrys)","70e7257e5c"]
["Овсянка желтогорлая (Cristemberiza elegans)","a7a295a751"]
["Овсянка желчная (Granativora bruniceps)","be67fddabb"]
["Овсянка камышевая (Schoeniclus schoeniclus)","f409aadfc7"]
["Овсянка красноклювая (Emberiza caesia)","f790b05bf7"]
["Овсянка красноухая (Emberiza cioides)","912c2fce26"]
["Овсянка лисья (Passerella iliaca)","361a17eae3"]
["Овсянка маскированная (Ocyris personatus)","f00bb27049"]
["Овсянка монгольская (Schoeniclus lydiae)","0ae61ce23d"]
["Овсянка обыкновенная (Emberiza citrinella)","a03c769f7b"]
["Овсянка огородная (Emberiza cirlus)","beabc3c202"]
["Овсянка ошейниковая (Emberiza fucata)","740b08b570"]
["Овсянка певчая (Melospiza melodia)","294d740926"]
["Овсянка пестрогрудая (Passerella unalaschcensis)",1194051328]
["Овсянка полярная (Schoeniclus pallasi)","f80675f07a"]
["Овсянка рыжая (Ocyris rutilus)","58c502a689"]
["Овсянка рыжешейная (Schoeniclus yessoensis)","97f117a78b"]
["Овсянка саванная (Passerculus sandwichensis)","fb24586d47"]
["Овсянка садовая (Emberiza hortulana)","5e4148da91"]
["Овсянка седоголовая (Ocyris spodocephalus)","489b7e9ad1"]
["Овсянка серая (Emberiza cineracea)","03a0bc843c"]
["Овсянка сизая (Ocyris variabilis)","a1ff330e91"]
["Овсянка скалистая (Emberiza buchanani)","3db0912009"]
["Овсянка Стюарта (Emberiza stewarti)","fd5f90e008"]
["Овсянка таежная (Ocyris tristrami)","ee57a4d8cf"]
["Овсянка чернобровая (Zonotrichia atricapilla)","1548ab1ca8"]
["Овсянка черноголовая (Granativora melanocephala)","2e1caff226"]
["Овсянка Янковского (Emberiza jankowskii)","25fda13fa4"]
["Овсянка-крошка (Ocyris pusillus)","267a2fe387"]
["Овсянка-ремез (Ocyris rusticus)","2dd2fae876"]
["Огарь (Tadorna ferruginea)","3d46aaf9e4"]
["Олуша бурая (Sula leucogaster)","7c7e029659"]
["Олуша красноногая (Sula sula)","f6e454d60d"]
["Олуша северная (Morus bassanus)","fa2afee012"]
["Оляпка бурая (Cinclus pallasii)","35e3e60303"]
["Оляпка обыкновенная (Cinclus cinclus)","7ed1601a26"]
["Орел степной (Aquila nipalensis)","cd73b1ab19"]
["Орел хохлатый (Nisaetus nipalensis)","746bdd55b1"]
["Орел ястребиный (Hieraaetus fasciatus)","369730c4ce"]
["Орел-карлик (Hieraaetus pennatus)","89249d5815"]
["Орлан белоголовый (Haliaeetus leucocephalus)","63ac0dd692"]
["Орлан белоплечий (Haliaeetus pelagicus)","d020f2d4b2"]
["Орлан черный (Haliaeetus niger)","d0c0634017"]
["Орлан-белохвост (Haliaeetus albicilla)","72df318b2d"]
["Орлан-долгохвост (Haliaeetus leucoryphus)","c7ec1de01c"]
["Осоед обыкновенный (Pernis apivorus)","c172a42467"]
["Осоед хохлатый (Pernis ptilorhyncus)","20ae84f615"]
["Пастушок водяной (Rallus aquaticus)","a3a99dc4c2"]
["Пастушок восточный (Rallus indicus)","2e138dd59a"]
["Певун миртовый (Dendroica coronata)","62bc9e60d5"]
["Певун речной (Seiurus noveboracensis)","a6e1b3cb8d"]
["Пеганка (Tadorna tadorna)","4b36f85834"]
["Пеганка хохлатая (Tadorna cristata)","f75fbcd76b"]
["Пеликан кудрявый (Pelecanus crispus)","ae955cf059"]
["Пеликан розовый (Pelecanus onocrotalus)","6b5a31153c"]
["Пеночка белобрюхая (Phylloscopus orientalis)","b73f738de1"]
["Пеночка бледноногая (Phylloscopus tenellipes)","899360e655"]
["Пеночка бурая (Phylloscopus fuscatus)",1319907238]
["Пеночка желтобрюхая (Phylloscopus nitidus)","76745a9301"]
["Пеночка зеленая (Phylloscopus trochiloides)","2c673c155e"]
["Пеночка зеленокрылая (Phylloscopus occipitalis)","f40bf156c2"]
["Пеночка индийская (Phylloscopus griseolus)","6c5d8e06bf"]
["Пеночка иранская (Phylloscopus neglectus)","4a049eda55"]
["Пеночка кавказская (Phylloscopus lorenzii)","b5d7a02818"]
["Пеночка корольковая (Phylloscopus proregulus)","fba8345855"]
["Пеночка сахалинская (Phylloscopus borealoides)","48931dd89e"]
["Пеночка светлобрюхая (Phylloscopus bonelli)","a665acb28c"]
["Пеночка светлоголовая (Phylloscopus coronatus)","7eb8b870a1"]
["Пеночка толстоклювая (Phylloscopus schwarzi)","bef36b3f72"]
["Пеночка тусклая (Phylloscopus humei)","c75baab349"]
["Пеночка-весничка (Phylloscopus trochilus)","bb681302e0"]
["Пеночка-зарничка (Phylloscopus inornatus)","5d96756c9e"]
["Пеночка-таловка (Phylloscopus borealis)","d8920d0f91"]
["Пеночка-теньковка (Phylloscopus collybita)",4526815453]
["Пеночка-трещотка (Phylloscopus sibilatrix)","a8f0c1a5c4"]
["Перевозчик (Actitis hypoleucos)","0e4793841a"]
["Перевозчик пятнистый (Actitis macularius)","ff1374be50"]
["Перепел немой (Coturnix japonica)","10ed32f432"]
["Перепел обыкновенный (Coturnix coturnix)","3a067ee56a"]
["Перепелятник (Accipiter nisus)","28a305475c"]
["Перепелятник малый (Accipiter gularis)","60f4433487"]
["Пересмешка бледная (Iduna pallida)","acf044b458"]
["Пересмешка зеленая (Hippolais icterina)","c62d49f778"]
["Пересмешка пустынная (Hippolais languida)","34952b33a2"]
["Пересмешка средиземноморская (Hippolais olivetorum)","5bf5a7e301"]
["Песочник белохвостый (Calidris temminckii)","209509e12b"]
["Песочник берингийский (Calidris ptilocnemis)","945e45471a"]
["Песочник большой (Calidris tenuirostris)","ac915759b7"]
["Песочник бонапартов (Calidris fuscicollis)","f9a3822225"]
["Песочник бэрдов (Calidris bairdii)","4cd282cfd3"]
["Песочник длиннопалый (Calidris subminuta)","68185b34b3"]
["Песочник исландский (Calidris canutus)","439dcffc46"]
["Песочник малый (Calidris pusilla)","703185aa0a"]
["Песочник морской (Calidris maritima)","08abb8137d"]
["Песочник острохвостый (Calidris acuminata)","1c0b9341cc"]
["Песочник перепончатопалый (Calidris mauri)","ddc850e3e8"]
["Песочник-красношейка (Calidris ruficollis)","30251f104c"]
["Песочник-крошка (Calidris minutilla)","f9f10c8e10"]
["Пестрогрудка длинноклювая (Tribura major)","c40fb5b34e"]
["Пестрогрудка малая (Tribura davidi)","9ae7fbee6c"]
["Пестрогрудка сибирская (Tribura tacsanowskia)","d215f7e8e2"]
["Песчанка (Calidris alba)","7b95121f29"]
["Пигалица белохвостая (Vanellochettusia leucura)","5d30f3f4f0"]
["Пискулька (Anser erythropus)","61f283eac4"]
["Пищуха (Certhia familiaris)","0e600e3d77"]
["Пищуха гималайская (Certhia himalayana)","28e2221945"]
["Пищуха короткопалая (Certhia brachydactyla)","19c0466e66"]
["Плавунчик американский (Phalaropus tricolor)",4517504983]
["Плавунчик круглоносый (Phalaropus lobatus)","9856c9f527"]
["Плавунчик плосконосый (Phalaropus fulicarius)","2cfd9fa950"]
["Поганка красношейная (Podiceps auritus)","39dd89f43b"]
["Поганка малая (Tachybaptus ruficollis)","151a093981"]
["Поганка серощекая (Podiceps grisegena)","e0fc6a5c36"]
["Поганка черношейная (Podiceps nigricollis)","9b7533e48a"]
["Погоныш белогрудый (Amaurornis phoenicurus)","a7d1775f96"]
["Погоныш белокрылый (Coturnicops exquisitus)","a5b65b3341"]
["Погоныш большой (Porzana paykullii)","cbff46922f"]
["Погоныш каролинский (Porzana carolina)","db23ef0eb3"]
["Погоныш красноногий (Porzana fusca)","5d5f37f87a"]
["Погоныш малый (Porzana parva)","ab8a6ac90d"]
["Погоныш обыкновенный (Porzana porzana)","2a21149622"]
["Погоныш-крошка (Porzana pusilla)","fbf4193b70"]
["Подорлик большой (Aquila clanga)","a65f726edd"]
["Подорлик малый (Aquila pomarina)","2776bb9f30"]
["Подорожник лапландский (Calcarius lapponicus)","5b74e05d6a"]
["Поморник большой (Stercorarius skua)","490d09d7c6"]
["Поморник длиннохвостый (Stercorarius longicaudus)","24527721da"]
["Поморник короткохвостый (Stercorarius parasiticus)","fde417a665"]
["Поморник средний (Stercorarius pomarinus)","4795b7e1e7"]
["Поморник южнополярный (Stercorarius maccormicki)","efdc16a806"]
["Поползень большой скальный (Sitta tephronota)","ea5c5a2351"]
["Поползень косматый (Sitta villosa)","aaf39d7929"]
["Поползень малый скальный (Sitta neumayer)","2c66093246"]
["Поползень обыкновенный (Sitta europaea)","9d45c25eb7"]
["Поползень черноголовый (Sitta krueperi)","c2ad5ede83"]
["Поползень якутский (Sitta arctica)","7fec851da3"]
["Попугай Крамера (Psittacula krameri)","2be2b238a9"]
["Поручейник (Tringa stagnatilis)","16d2c2ff7f"]
["Просянка (Miliaria calandra)","e5e6dabb31"]
["Пуночка белая (Plectrophenax hyperboreus)","a981463f8c"]
["Пуночка обыкновенная (Plectrophenax nivalis)","4f6a8dc0de"]
["Пустельга американская (Falco sparverius)","ed80a03612"]
["Пустельга обыкновенная (Falco tinnunculus)","67555da54b"]
["Пустельга степная (Falco naumanni)","9299f8cbcc"]
["Пухляк (Parus montanus)","c9a8e8985d"]
["Пыжик длинноклювый (Brachyramphus marmoratus)","a4c0f131b8"]
["Пыжик короткоклювый (Brachyramphus brevirostris)","3c6c2850c6"]
["Пыжик пестрый (Brachyramphus perdix)","40bdcfabb0"]
["Ремез венценосный (Remiz coronatus)","d54d1f37c9"]
["Ремез китайский (Remiz consobrinus)","222ce7b7ee"]
["Ремез обыкновенный (Remiz pendulinus)","6bf30c78af"]
["Ремез тростниковый (Remiz macronyx)","bdc43c3a5c"]
["Ржанка азиатская бурокрылая (Pluvialis fulva)","01dd0f32c6"]
["Ржанка американская бурокрылая (Pluvialis dominica)","5b2005fa5f"]
["Ржанка золотистая (Pluvialis apricaria)","387f952d9e"]
["Рябинник (Turdus pilaris)","6fe587e797"]
["Рябок белобрюхий (Pterocles alchata)","9572bfb87c"]
["Рябок сенегальский (Pterocles senegallus)","2d230a9d56"]
["Рябок чернобрюхий (Pterocles orientalis)","38ea1d55f3"]
["Рябчик (Tetrastes bonasia)","e5b86fd632"]
["Савка белоголовая (Oxyura leucocephala)","37516bb86b"]
["Саджа обыкновенная (Syrrhaptes paradoxus)","b78074434a"]
["Саджа тибетская (Syrrhaptes tibetanus)","589162f7ef"]
["Сапсан (Falco peregrinus)","ab48abc3c6"]
["Сарыч ястребиный (Butastur indicus)","c85804d8f3"]
["Сверчок обыкновенный (Locustella naevia)","1ce33578c4"]
["Сверчок островной (Locustella pleskei)","b07ff9aba1"]
["Сверчок охотский (Locustella ochotensis)","59ca6e5358"]
["Сверчок певчий (Locustella certhiola)","120d58cc4d"]
["Сверчок пятнистый (Locustella lanceolata)","d93d1e8e65"]
["Сверчок речной (Locustella fluviatilis)","1cda7d5c5e"]
["Сверчок сахалинский (Locustella amnicola)","e4f9a6ce14"]
["Сверчок соловьиный (Locustella luscinioides)","22a888c6b1"]
["Сверчок таежный (Locustella fasciolata)","ed5b442105"]
["Сверчок японский (Locustella pryeri)","d5d2d157d6"]
["Свиристель (Bombycilla garrulus)","0654536ab8"]
["Свиристель японский (Bombycilla japonica)","6adb2da4f7"]
["Свиязь (Anas penelope)","7ca906a517"]
["Свиязь американская (Anas americana)","dbeb4a44bd"]
["Серпоклюв (Ibidorhyncha struthersii)","bd95c95141"]
["Сизоворонка (Coracias garrulus)","7fc440345c"]
["Синехвостка (Tarsiger cyanurus)","4e32ff96f1"]
["Синица большая (Parus major)","1da7fc0482"]
["Синица бухарская (Parus bokharensis)","faa5cb9d14"]
["Синица восточная (Parus minor)","e54d2a4a68"]
["Синица длиннохвостая (Aegithalos caudatus)","0919306f8b"]
["Синица желтобрюхая (Parus venustulus) ","fd2d7a8f5e"]
["Синица рыжешейная (Parus rufonuchalis)","f7d12b9b05"]
["Синица серая (Parus cinereus)","021f648e90"]
["Синица тиссовая (Parus varius)","96fb142783"]
["Синица усатая (Panurus biarmicus)","4846e3ef03"]
["Синица хохлатая (Parus cristatus)","95531a31c1"]
["Синичка расписная (Leptopoecile sophiae)","9bb9e89f8d"]
["Синьга (Melanitta nigra)","da060bcb03"]
["Синьга американская (Melanitta americana)","ef3d7327b5"]
["Синяя птица (Myophonus caeruleus)","7fd3325cbe"]
["Сип белоголовый (Gyps fulvus)","f35940802b"]
["Сипуха обыкновенная (Tyto alba)","1e8a986431"]
["Скворец браминский (Sturnia pagodarum)","d1b8274508"]
["Скворец китайский (Sturnia sinensis)","ad97ea6407"]
["Скворец красноклювый (Sturnus sericeus)","0822835cc4"]
["Скворец краснощекий (Sturnia philippensis)","86d5dd9bc5"]
["Скворец малый (Sturnia sturnina)","a02768a399"]
["Скворец обыкновенный (Sturnus vulgaris)","156be91025"]
["Скворец розовый (Pastor roseus)","bf1fe7c501"]
["Скворец серый (Sturnus cineraceus)","b691c86572"]
["Скопа (Pandion haliaetus)","a77b87e32d"]
["Скотоцерка (Scotocerca inquieta)","3f68516d58"]
["Славка белоусая (Sylvia mystacea)","368ead96e3"]
["Славка певчая (Sylvia crassirostris)","fbaa6003e0"]
["Славка пустынная (Sylvia nana)","2ce4eaa245"]
["Славка рыжегрудая (Sylvia cantillans)","2631b62c79"]
["Славка Рюппеля (Sylvia rueppelli)","4d948b93a5"]
["Славка садовая (Sylvia borin)","83c0581ff7"]
["Славка серая (Sylvia communis)","ff670d07af"]
["Славка средиземноморская (Sylvia melanocephala)","c8441bcccb"]
["Славка ястребиная (Sylvia nisoria)","9f9a9c3a81"]
["Славка-завирушка (Sylvia curruca)","e46c71c04f"]
["Славка-завирушка горная (Sylvia althaea)","4c0a055614"]
["Славка-черноголовка (Sylvia atricapilla)","f6b618a7b2"]
["Снегирь (Pyrrhula pyrrhula)","85f6e021e8"]
["Снегирь серый (Pyrrhula cineracea)","8c93174b6f"]
["Снегирь уссурийский (Pyrrhula griseiventris)","b0c53dec08"]
["Сова белая (Nyctea scandiaca)","8ef5f6420c"]
["Сова болотная (Asio flammeus)","a666ea6e6d"]
["Сова иглоногая (Ninox scutulata)","0342c60902"]
["Сова ушастая (Asio otus)",3717932927]
["Сова ястребиная (Surnia ulula)","ef55699d41"]
["Совка буланая (Otus brucei)","53c5fc3e52"]
["Совка ошейниковая (Otus bakkamoena)","14545dbe41"]
["Совка уссурийская (Otus sunia)","172305fe51"]
["Сойка (Garrulus glandarius)","626f307128"]
["Сойка монгольская (Podoces hendersoni)","eaa22990e9"]
["Сойка саксаульная (Podoces panderi)","9c79a668e8"]
["Сокол средиземноморский (Falco biarmicus)","e31f2a1ae4"]
["Сокол Элеоноры (Falco eleonorae)","10d47dbbf7"]
["Соловей обыкновенный (Luscinia luscinia)","eae36d2e26"]
["Соловей синий (Luscinia cyane)","0be968de30"]
["Соловей тугайный (Erythropygia galactotes)","6273b9cdac"]
["Соловей южный (Luscinia megarhynchos)","3b53efe9b2"]
["Соловей-белошейка (Irania gutturalis)","9ec849be7d"]
["Соловей-красношейка (Luscinia calliope)","cbca3cae88"]
["Соловей-свистун (Luscinia sibilans)","bf8dcfc39e"]
["Сорока (Pica pica)","2f10eec739"]
["Сорока голубая (Cyanopica cyanus)","4e907de68a"]
["Сорокопут длиннохвостый (Lanius schach)","12acb49296"]
["Сорокопут клинохвостый (Lanius sphenocercus)","2cdd4ab913"]
["Сорокопут красноголовый (Lanius senator)","726a902a9a"]
["Сорокопут маскированный (Lanius nubicus)","7efc8478f2"]
["Сорокопут пустынный (Lanius lahtora)","a4c9d281c4"]
["Сорокопут свиристелевый (Hypocolius ampelinus)","f29de151ff"]
["Сорокопут серый (Lanius excubitor)","51cb6ec452"]
["Сорокопут тигровый (Lanius tigrinus)","53b48118c9"]
["Сорокопут чернолобый (Lanius minor)","4017e30690"]
["Сорокопут японский (Lanius bucephalus)","07cb4c43f9"]
["Сплюшка (Otus scops)","ede62af280"]
["Старик обыкновенный (Synthliboramphus antiquus)","6b1a7cdbed"]
["Старик хохлатый (Synthliboramphus wumizusume)","6c44639f31"]
["Стенолаз краснокрылый (Tichodroma muraria)","c686be15c2"]
["Стервятник (Neophron percnopterus)","82adb79c5c"]
["Стерх (Grus leucogeranus)","8154d2fb95"]
["Стрепет (Tetrax tetrax)","6a538553aa"]
["Стриж белобрюхий (Apus melba)","58946081f7"]
["Стриж белопоясный (Apus pacificus)","71381fb1de"]
["Стриж иглохвостый (Hirundapus caudacutus)","eca66047e7"]
["Стриж малый (Apus affinis)","57a4a620d8"]
["Стриж черный (Apus apus)","b0edc30e54"]
["Султанка (Porphyrio porphyrio)","2f37014e2b"]
["Сутора бурая (Paradoxornis webbianus)","43ae3dd8bf"]
["Сутора тростниковая (Paradoxornis polivanovi)","f684f1075f"]
["Сухонос (Anser cygnoides)","23e0759476"]
["Сыч воробьиный (Glaucidium passerinum)","0790f86d4a"]
["Сыч домовый (Athene noctua)","f03c4da4d7"]
["Сыч мохноногий (Aegolius funereus)","4efdd08bb2"]
["Тайфунник бонинский (Pterodroma hypoleuca)","cbba13964e"]
["Тайфунник пестрый (Pterodroma inexpectata)","e5e82f6062"]
["Тайфунник Соландера (Pterodroma solandri)","d57bf89426"]
["Теньковка горная (Phylloscopus sindianus)","8d54d2559a"]
["Тетерев кавказский (Lyrurus mlokosiewiczi)","68e70db6ec"]
["Тетерев обыкновенный (Lyrurus tetrix)","889d92369e"]
["Тетеревятник (Accipiter gentilis)","a6e7540010"]
["Тимелия полосатая (Garrulax lineatus)","248ce26582"]
["Тиркушка восточная (Glareola maldivarum)","4a0ab7dd6f"]
["Тиркушка луговая (Glareola pratincola)","186cf77028"]
["Тиркушка степная (Glareola nordmanni)","a4a9d5a6f2"]
["Топорок (Lunda cirrhata)","55d22722f6"]
["Травник (Tringa totanus)","936c23ec80"]
["Трехперстка (Turnix tanki)","97d9d685c0"]
["Трупиал луговой западный (Sturnella neglecta)","209b51359d"]
["Трупиал ржавчатый (Euphagus carolinus)","59e7d64226"]
["Трясогузка белая (Motacilla alba)","6a5bd6e43b"]
["Трясогузка горная (Motacilla cinerea)","3a3335fc32"]
["Трясогузка древесная (Dendronanthus indicus)","08bf8e9009"]
["Трясогузка желтая (Motacilla flava)","ba37af8e52"]
["Трясогузка желтая берингийская (Motacilla tschutschensis)","9d09b1e488"]
["Трясогузка желтая китайская (Motacilla macronyx)","f5e30244d1"]
["Трясогузка желтоголовая (Motacilla citreola)","d8ab341188"]
["Трясогузка желтоголовая малая (Motacilla werae)","fda9371e96"]
["Трясогузка желтолобая (Motacilla lutea)","59bcd8001d"]
["Трясогузка зеленоголовая (Motacilla taivana)","913a0088fb"]
["Трясогузка камчатская (Motacilla lugens)","cd92091d72"]
["Трясогузка маскированная (Motacilla personata)","3bc67f83d0"]
["Трясогузка черноголовая (Motacilla feldegg)","b82c914439"]
["Трясогузка черноспинная (Motacilla calcarata)","931af4c4b5"]
["Трясогузка японская (Motacilla grandis)","1c102cbcef"]
["Тулес (Pluvialis squatarola)","608185a9c6"]
["Тупик обыкновенный (Fratercula arctica)","6983714a82"]
["Тупик-носорог (Cerorhinca monocerata)","ead7020e02"]
["Турач (Francolinus francolinus)","bd0d4e241c"]
["Турпан горбоносый (Melanitta deglandi)","90a90e0adb"]
["Турпан обыкновенный (Melanitta fusca)","0955c09897"]
["Турпан пестроносый (Melanitta perspicillata)","3da7714a4a"]
["Турухтан (Philomachus pugnax)","b2512e0930"]
["Тювик европейский (Accipiter brevipes)","3a5bb21971"]
["Тювик обыкновенный (Accipiter badius)","954a46119d"]
["Удод  (Upupa epops)","6eee44d01b"]
["Улар алтайский (Tetraogallus altaicus)","b4e3a69d1d"]
["Улар гималайский (Tetraogallus himalayensis)","1213dd0c09"]
["Улар кавказский (Tetraogallus caucasicus)","5c1aeb8b22"]
["Улар каспийский (Tetraogallus caspius)","f0c46ba6de"]
["Улар тибетский (Tetraogallus tibetanus)","392cee44e9"]
["Улит американский пепельный (Heteroscelus incanus)","8a863f770d"]
["Улит большой (Tringa nebularia)","bf4a6c2595"]
["Улит желтоногий (Tringa flavipes)","c0d4c0397b"]
["Улит охотский (Tringa guttifer)","94018193fd"]
["Улит пестрый (Tringa melanoleuca)","8313b4037b"]
["Улит сибирский пепельный (Heteroscelus brevipes)","58937b3626"]
["Урагус (Uragus sibiricus)","6f7084ea17"]
["Утка серая (Anas strepera)","35383564e5"]
["Фазан обыкновенный (Phasianus colchicus)","a35552b688"]
["Филин обыкновенный (Bubo bubo)","38d80b98cc"]
["Филин рыбный (Ketupa blakistoni)","446f262e60"]
["Фифи (Tringa glareola)","07ae06b2aa"]
["Фламинго обыкновенный (Phoenicopterus roseus)","83fbe7871e"]
["Фрегат-ариэль (Fregata ariel)","4d11503423"]
["Халей (Larus heuglini)","b1709fa06d"]
["Ходулочник (Himantopus himantopus)","29a389f57e"]
["Хохотун черноголовый (Larus ichthyaetus)","44c73a05a2"]
["Хохотунья (Larus cachinnans)","26ca5259fa"]
["Хрустан (Eudromias morinellus)","7d539db501"]
["Цапля белокрылая (Ardeola bacchus)","d6c462c98b"]
["Цапля большая белая (Casmerodius albus)","0fecf2b1c1"]
["Цапля восточная белая (Casmerodius modestus)","056e924591"]
["Цапля египетская (Bubulcus ibis)","cadf3cbf6d"]
["Цапля желтая (Ardeola ralloides)","c8b52950d5"]
["Цапля желтоклювая (Egretta eulophotes)","6cea691c2f"]
["Цапля индийская прудовая (Ardeola grayii)","2812e349a1"]
["Цапля малая белая (Egretta garzetta)","e36be1f884"]
["Цапля рыжая (Ardea purpurea)","4c0d4b23b3"]
["Цапля серая (Ardea cinerea)","287f0f0636"]
["Цапля средняя белая (Casmerodius intermedius)","02f9387786"]
["Цистикола золотистая (Cisticola juncidis)","5d3e1afcf2"]
["Чайка армянская (Larus armenicus)","949cdfe7cb"]
["Чайка ацтекская (Larus atricilla)","344e8b88a3"]
["Чайка белая (Pagophila eburnea)","5be2714af8"]
["Чайка бонапартова (Larus philadelphia)","306a159dd7"]
["Чайка буроголовая (Larus brunnicephalus)","db2fe14fc3"]
["Чайка вилохвостая (Xema sabini)",2808551697]
["Чайка восточносибирская (Larus vegae)","56758d8813"]
["Чайка китайская (Larus saundersi)","bd8e005c8e"]
["Чайка малая (Larus minutus)","b01f46af6a"]
["Чайка монгольская (Larus mongolicus)","b1a051e8e5"]
["Чайка морская (Larus marinus)","bf21432fa9"]
["Чайка Одуэнова (Larus audouinii)","44be4c70b7"]
["Чайка озерная (Larus ridibundus)","58acf13247"]
["Чайка полярная (Larus glaucoides)","11c157eef6"]
["Чайка реликтовая (Larus relictus)","30ce4d0b7d"]
["Чайка розовая (Rhodostethia rosea)","9b411bd830"]
["Чайка серебристая (Larus argentatus)","5e0b671d34"]
["Чайка серокрылая (Larus glaucescens)","21fe5fee1a"]
["Чайка сизая (Larus canus)","5d32e97e84"]
["Чайка средиземноморская (Larus michahellis)","05371337bb"]
["Чайка Тейера (Larus thayeri)","1d3b4daf34"]
["Чайка тихоокеанская (Larus schistisagus)","2326e52eb2"]
["Чайка Франклина (Larus pipixcan)","71ed894daf"]
["Чайка черноголовая (Larus melanocephalus)","02d285080d"]
["Чайка чернохвостая (Larus crassirostris)","e339944ffe"]
["Чеглок (Falco subbuteo)","80f9b02f46"]
["Чеграва (Hydroprogne caspia)","346216c599"]
["Чекан большой (Saxicola insignis)","a553aa9d96"]
["Чекан луговой (Saxicola rubetra)","02dd1e504c"]
["Чекан черноголовый (Saxicola torquata)","b359c064d6"]
["Чекан черный (Saxicola caprata)","1baf8c1cd9"]
["Чернеть американская (Aythya americana)","d77b9d0664"]
["Чернеть малая морская (Aythya affinis)","6edc70a6d0"]
["Чернеть морская (Aythya marila)","86655f7d82"]
["Чернеть хохлатая (Aythya fuligula)","a05611730f"]
["Чернозобик (Calidris alpina)","7ae37456f7"]
["Черныш (Tringa ochropus)","59ce950472"]
["Чечевица арчовая (Carpodacus rhodochlamys)","de95570c7d"]
["Чечевица большая (Carpodacus rubicilla)","e0f04dc35f"]
["Чечевица обыкновенная (Carpodacus erythrinus)","7d59dfc746"]
["Чечевица розовая (Carpodacus grandis)","9e688f0158"]
["Чечевица сибирская (Carpodacus roseus)","e5d12f413e"]
["Чечевичник краснокрылый (Rhodopechys sanguineus)","7e7b467572"]
["Чечетка (Acanthis flammea)","63828d1329"]
["Чечетка горная (Acanthis flavirostris)","435dcfafe7"]
["Чечетка пепельная (Acanthis hornemanni)","76bba3ccb5"]
["Чибис обыкновенный (Vanellus vanellus)","8e9d3fdf5a"]
["Чибис серый (Microsarcops cinereus)","573141562c"]
["Чибис украшенный (Lobivanellus indicus)","b4f5570dc0"]
["Чибис шпорцевый (Hoplopterus spinosus)","d315659c38"]
["Чиж (Spinus spinus)","35dfe23480"]
["Чиж сосновый (Spinus pinus)","61bef524d7"]
["Чирок голубокрылый (Anas discors)","b8e7aa5a20"]
["Чирок зеленокрылый (Anas carolinensis)","5fae3e46ac"]
["Чирок мраморный (Marmaronetta angustirostris)","f84ff00b30"]
["Чирок хлопковый блестящий (Nettapus coromandelianus)","8d54ee2276"]
["Чирок-клоктун (Anas formosa)","4f4792807d"]
["Чирок-свистунок (Anas crecca)","d2c356889d"]
["Чирок-трескунок (Anas querquedula)","d501082011"]
["Чистик обыкновенный (Cepphus grylle)","cea97ac38b"]
["Чистик очковый (Cepphus carbo)","b328815b25"]
["Чистик тихоокеанский (Cepphus columba)","eecbfc71ab"]
["Чомга (Podiceps cristatus)","383c8e3503"]
["Шахин (Falco pelegrinoides)","c46d4ee018"]
["Шилоклювка (Recurvirostra avosetta)","cb46b28910"]
["Шилохвость (Anas acuta)","27db84b021"]
["Широконоска (Anas clypeata)","78dd4f7398"]
["Широкорот обыкновенный (Eurystomus orientalis)","be0d8520ad"]
["Щегол обыкновенный (Carduelis carduelis)","6da55a4e88"]
["Щегол седоголовый (Carduelis caniceps)","1fa752bfcf"]
["Щеголь (Tringa erythropus)","289fbc2e24"]
["Щур обыкновенный (Pinicola enucleator)","18f7c1b403"]
["Щурка зеленая (Merops persicus)","7773c16478"]
["Щурка золотистая (Merops apiaster)","1352898fd3"]
["Юнко орегонский (Junco oreganus)","9469947fc9"]
["Юнко серый (Junco hyemalis)","51197e7d39"]
["Юрок (Fringilla montifringilla)","56c1e72059"]
["Якана фазанохвостая (Hydrophasianus chirurgus)","716ab89c84"]
["Ястреб короткопалый (Accipiter soloensis)","0604f36cfb"]

{"sheet":"Регионы","index":3,"n_rows":79,"n_cols":4,"rows_kept":79,"cut":false,"hidden":true,"merged":[]}
[null,"Адыгея",null,"Винницкая область"]
[null,"Алтай республика",null,"Волынская область"]
[null,"Алтайский край",null,"Днепропетровская область"]
[null,"Амурская область",null,"Донецкая область"]
[null,"Архангельская область",null,"Житомирская область"]
[null,"Астраханская область",null,"Закарпатская область"]
[null,"Башкирия",null,"Запорожская область"]
[null,"Белгородская область",null,"Ивано-Франковская область"]
[null,"Брянская область",null,"Киевская область"]
[null,"Бурятия",null,"Кировоградская область"]
[null,"Владимирская область",null,"Крым"]
[null,"Волгоградская область",null,"Луганская область"]
[null,"Вологодская область",null,"Львовская область"]
[null,"Воронежская область",null,"Николаевская область"]
[null,"Дагестан",null,"Одесская область"]
[null,"Еврейская АО",null,"Полтавская область"]
[null,"Ивановская область",null,"Ровненская область"]
[null,"Ингушетия",null,"Сумская область"]
[null,"Иркутская область",null,"Тернопольская область"]
[null,"Кабардино-Балкария",null,"Харьковская область"]
[null,"Калининградская область",null,"Херсонская область"]
[null,"Калмыкия",null,"Хмельницкая область"]
[null,"Калужская область",null,"Черкасская область"]
[null,"Камчатский край",null,"Черниговская область"]
[null,"Карачаево-Черкессия",null,"Черновицкая область"]
[null,"Карелия"]
[null,"Кемеровская область"]
[null,"Кировская область"]
[null,"Коми"]
[null,"Костромская область"]
[null,"Краснодарский край"]
[null,"Красноярский край"]
[null,"Курганская область"]
[null,"Курская область"]
[null,"Ленинградская область"]
[null,"Липецкая область"]
[null,"Магаданская область"]
[null,"Марий Эл"]
[null,"Мордовия"]
[null,"Московская область"]
[null,"Мурманская область"]
[null,"Нижегородская область"]
[null,"Новгородская область"]
[null,"Новосибирская область"]
[null,"Омская область"]
[null,"Оренбургская область"]
[null,"Орловская область"]
[null,"Осетия Северная"]
[null,"Пензенская область"]
[null,"Пермский край"]
[null,"Приморский край"]
[null,"Псковская область"]
[null,"Ростовская область"]
[null,"Рязанская область"]
[null,"Самарская область"]
[null,"Саратовская область"]
[null,"Сахалин"]
[null,"Свердловская"]
[null,"Смоленская область"]
[null,"Ставропольский край"]
[null,"Тамбовская область"]
[null,"Татарстан"]
[null,"Тверская область"]
[null,"Томская область"]
[null,"Тульская область"]
[null,"Тыва"]
[null,"Тюменская область"]
[null,"Удмуртия"]
[null,"Ульяновская область"]
[null,"Хабаровский край"]
[null,"Хакассия"]
[null,"ХМАО"]
[null,"Челябинская область"]
[null,"Чечня"]
[null,"Читинская область"]
[null,"Чувашия"]
[null,"Чукотка"]
[null,"Якутия"]
[null,"Ярославская область"]

{"sheet":"Страны","index":4,"n_rows":14,"n_cols":2,"rows_kept":14,"cut":false,"hidden":true,"merged":[]}
[null,"Азербайджан"]
[null,"Армения"]
[null,"Беларусь"]
[null,"Грузия"]
[null,"Казахстан"]
[null,"Киргизия"]
[null,"Латвия"]
[null,"Литва"]
[null,"Россия"]
[null,"Таджикистан"]
[null,"Туркменистан"]
[null,"Узбекистан"]
[null,"Украина"]
[null,"Эстония"]

{"sheet":"Погода","index":5,"n_rows":5,"n_cols":2,"rows_kept":5,"cut":false,"hidden":true,"merged":[]}
[]
[null,"Пасмурно"]
[null,"Переменная облачность"]
[null,"Снег"]
[null,"Ясно"]

{"sheet":"Биотопы","index":6,"n_rows":45,"n_cols":1,"rows_kept":45,"cut":false,"hidden":true,"merged":[]}
["Наименование"]
["Альпийские луга"]
["Верховые болота"]
["Водораздельные луга"]
["Горы"]
["Заброшенные поля"]
["Заросли вечнозеленых кустарников"]
["Илистые и песчаные отмели"]
["Каменистые и ракушечные острова"]
["Каменистые осыпи, валуны"]
["Ленточные и колочные леса"]
["Лесные плантации"]
["Лесостепь"]
["Лесотундра"]
["Литораль"]
["Многолетние с/х культуры, сады"]
["Неизвестно"]
["Низовые болота"]
["Открытое море"]
["Отстойники, поля фильтрации"]
["Парки, сады"]
["Пашни, поля"]
["Переходные болота"]
["Песчаные дюны и пляжи"]
["Пойменные леса"]
["Пойменные луга"]
["Полупустыни"]
["Порослевые заросли"]
["Прибрежные лагуны"]
["Ракушечные и каменистые пляжи"]
["Реки и ручьи"]
["Сеянные луга"]
["Скалистые морские берега"]
["Смешанные леса"]
["Сплавины"]
["Степи"]
["Стоячие пресные водоемы"]
["Стоячие солоноватые и соленые водоемы"]
["Тундра"]
["Узкие морские заливы, фьорды"]
["Урбанизированные и индустриальные территории"]
["Хвойные леса"]
["Широколиственные вечнозеленые леса"]
["Широколиственные листопадные леса"]
[0]